Workbook

Sheet Escopo de Fornecimento
B1: Ministério do Desenvolvimento Regional - MDR
B2: Companhia do Desenvolvimento dos Vales do São Francisco e Parnaíba
B3: Codevasf - Brasília
A7: Objeto: Modernização da comporta da Jansen em São Luís/MA
A11: Valores com o BDI inclusos e preços sinapi junho/22
A12: ESCOPO DE FORNECIMENTO E SERVIÇOS
A14: 1 | B14: RECUPERAÇÃO DA INFRAESTRUTURA EXISTENTE, FORNECIMENTO E MONTAGEM DE COMPORTA E COMPLETO ACIONAMENTO
E15: DESONERADO C/BDI | G15: NÃO DESONERADO C/BDI
A16: Item | B16: Descrição | C16: Unid. | D16: Qtd | E16: Vlr Unitário | F16: Vlr Total | G16: Vlr Unitário | H16: Vlr Total
A17: FORNECIMENTO
A18: 1.2 | B18: Comporta deslizante em aço inoxidável 4 x 3 m, ítem 3.2.2 do T.R. | C18: unid. | D18: 1 | E18: =COTAÇÕES!K11 -> 1020433.333 | F18: =D18*E18 -> 1020433.333 | G18: =COTAÇÕES!L11 -> 1020433.333 | H18: =D18*G18 -> 1020433.333 | J18: =SUM(H18:H23) -> 1801168.333
A19: 1.3 | B19: Cilindro Hidráulico para acionamento da comporta, ítem 3.2.3.2 do T.R. | C19: unid. | D19: 1 | E19: =COTAÇÕES!K13 -> 112700 | F19: =D19*E19 -> 112700 | G19: =COTAÇÕES!L13 -> 112700 | H19: =D19*G19 -> 112700
A20: 1.4 | B20: Unidade Oleodinâmica para acionar o cilindro hidraúlico ítem 3.2.3.1 do T.R. | C20: unid. | D20: 1 | E20: =COTAÇÕES!K15 -> 370185 | F20: =E20*D20 -> 370185 | G20: =COTAÇÕES!L15 -> 370185 | H20: =G20*D20 -> 370185
A21: 1.5 | B21: Quadro de Comando Local ítem 3.2.4 do T.R. | C21: unid. | D21: 1 | E21: =COTAÇÕES!K17 -> 106950 | F21: 106950 | G21: =COTAÇÕES!L17 -> 106950 | H21: 106950
A22: 1.6 | B22: Sensor de Nível ultrassônico alcance 20 metros | C22: unid. | D22: 2 | E22: =COTAÇÕES!K19 -> 17250 | F22: =D22*E22 -> 34500 | G22: =COTAÇÕES!L19 -> 17250 | H22: 34500
A23: 1.7 | B23: Licensa software Elipse | C23: unid. | D23: 1 | E23: =COTAÇÕES!K21 -> 156400 | F23: =E23*D23 -> 156400 | G23: =COTAÇÕES!L21 -> 156400 | H23: 156400
A24: SERVIÇOS | I24: =SUM(H18:H23)/H30 -> 0.6395910517
A25: 1.8 | B25: Serviços de recuperação da infraestrutura existente, ítem 3.1.3 do T.R. | C25: unid. | D25: 1 | E25: ='CPU - ITEM 1'!K29 -> 311580.56 | F25: =E25*D25 -> 311580.56 | G25: ='CPU - ITEM 1'!L29 -> 290421.36 | H25: =D25*G25 -> 290421.36
A26: 1.9 | B26: Substituição da comporta, montagem do acionamento e testes | C26: unid. | D26: 1 | E26: ='CPU - ITEM 1'!K46 -> 464692.8 | F26: =D26*E26 -> 464692.8 | G26: ='CPU - ITEM 1'!L46 -> 443713.2 | H26: 443713.2 | J26: =SUM(H25:H28) -> 1014956.64
A27: 1.10 | B27: Montagem do Painél de Comando, comissionamento e start up local | C27: unid. | D27: 1.5 | E27: ='CPU - ITEM 1'!K55 -> 92202.56 | F27: 138303.84 | G27: ='CPU - ITEM 1'!L55 -> 85966.72 | H27: 128950.08
A28: 1.11 | B28: Desenvolvimento de Software de Gerenciamento | C28: unid. | D28: 2 | E28: ='CPU - ITEM 1'!K63 -> 80797.6 | F28: 161595.2 | G28: ='CPU - ITEM 1'!L63 -> 75936 | H28: 151872
B30: TOTAL DOS SERVIÇOS E FORNECIMENTOS | F30: =SUM(F17:F28) -> 2877340.733 | H30: =SUM(H17:H28) -> 2816124.973 | I30: =SUM(H25:H28)/H30 -> 0.3604089483
A33: 2 | B33: TELECOM
E34: DESONERADO C/BDI | G34: NÃO DESONERADO C/BDI
A35: Item | B35: Descrição | C35: Unid. | D35: Qtd | E35: Vlr Unitário | F35: Vlr Total | G35: Vlr Unitário | H35: Vlr Total
B36: FORNECIMENTO
A37: 2.1 | B37: Torre de comunicação de 15m conforme item 3.3.1.2 do T.R. | C37: unid. | D37: 2 | E37: =COTAÇÕES!K23 -> 93868.75 | F37: =E37*D37 -> 187737.5 | G37: =COTAÇÕES!L23 -> 93868.75 | H37: =D37*G37 -> 187737.5
A38: 2.2 | B38: Poste 4 x 4 m antivandalismo para suporte sensor de nível | C38: unid. | D38: 2 | E38: =COTAÇÕES!K25 -> 39509.4 | F38: =E38*D38 -> 79018.8 | G38: =COTAÇÕES!L25 -> 39509.4 | H38: =D38*G38 -> 79018.8
A39: 2.3 | B39: Painél tipo Rack Telecon, ventilação, IP 66, IP 67, resistência marinha | C39: unid. | D39: 2 | E39: =COTAÇÕES!K27 -> 10772.80517 | F39: =D39*E39 -> 21545.61033 | G39: =COTAÇÕES!L27 -> 10772.80517 | H39: =D39*G39 -> 21545.61033
A40: 2.4 | B40: Rádio PTP de 5Ghz | C40: unid. | D40: 2 | E40: =COTAÇÕES!K29 -> 43079 | F40: =D40*E40 -> 86158 | G40: =COTAÇÕES!L29 -> 43079 | H40: =D40*G40 -> 86158
A41: 2.5 | B41: Câmera espeed Dome PTZ, zoom ótico 32x, CMOS de 1/1.8", infravermelho 200m | C41: unid. | D41: 3 | E41: =COTAÇÕES!K31 -> 20700 | F41: =E41*D41 -> 62100 | G41: =COTAÇÕES!L31 -> 20700 | H41: =G41*D41 -> 62100
A42: 2.6 | B42: Workstation para servidor elipse e cameras, windows 10, sata de 4 TB, etc | C42: unid. | D42: 1 | E42: =COTAÇÕES!K33 -> 40250 | F42: 40250 | G42: =COTAÇÕES!L33 -> 40250 | H42: 40250
A43: 2.7 | B43: No Break tipo torre 220V/ 2.200VA, dysplay informativo, comunicação ethernet | C43: unid. | D43: 4 | E43: =COTAÇÕES!K35 -> 11087.2535 | F43: 44349.014 | G43: =COTAÇÕES!L35 -> 11087.2535 | H43: 44349.014
A44: 2.8 | B44: CX de Cabo LAN CAT 6 F/UTP 4p x 23AWG – 305 metros – ANSI/TIA-568.2-D | C44: unid. | D44: 2 | E44: =COTAÇÕES!K37 -> 3737.5 | F44: =E44*D44 -> 7475 | G44: =COTAÇÕES!L37 -> 3737.5 | H44: =G44*D44 -> 7475
A45: 2.9 | B45: Bobina 500m Cabo maritimo blindado,não halogêno,antichama,condutor dreno flexivel | C45: Unid. | D45: 1 | E45: =COTAÇÕES!K39 -> 14375 | F45: =E45*D45 -> 14375 | G45: =COTAÇÕES!L39 -> 14375 | H45: =G45*D45 -> 14375
B46: SERVIÇOS
A47: 2.9 | B47: Estudo de Enlace | C47: unid. | D47: 1 | E47: ='CPU - ITEM 2'!K16 -> 80797.6 | F47: =D47*E47 -> 80797.6 | G47: ='CPU - ITEM 2'!L16 -> 75936 | H47: 75936
A48: 2.10 | B48: Montagem da torre e equipamentos (laguna Jansen) | C48: unid. | D48: 1 | E48: ='CPU - ITEM 2'!K33 -> 181722.52 | F48: =D48*E48 -> 181722.52 | G48: ='CPU - ITEM 2'!L33 -> 170369.36 | H48: 170369.36
A49: 2.11 | B49: Montagem da torre e equipamentos (edificio SINFRA) | C49: unid. | D49: 1 | E49: ='CPU - ITEM 2'!K49 -> 237746.36 | F49: =D49*E49 -> 237746.36 | G49: ='CPU - ITEM 2'!L49 -> 223331.92 | H49: 223331.92
A50: 2.12 | B50: Interligação, comissionamento e star-up Torre Laguna Jansen com Painél | C50: unid. | D50: 1 | E50: ='CPU - ITEM 2'!K59 -> 171123.36 | F50: 171123.36 | G50: ='CPU - ITEM 2'!L59 -> 161831.04 | H50: 161831.04
A51: 2.13 | B51: Interligação, comissionamento e star-up Torre SINFRA com servidor | C51: unid. | D51: 1 | E51: ='CPU - ITEM 2'!K69 -> 171123.36 | F51: 171123.36 | G51: ='CPU - ITEM 2'!L69 -> 161831.04 | H51: 161831.04
A52: 2.14 | B52: Montagem de poste antivandalismo 4 x 4 m com equipamentos | C52: unid. | D52: 2 | E52: ='CPU - ITEM 2'!K81 -> 57525.28 | F52: 115050.56 | G52: ='CPU - ITEM 2'!L81 -> 54308.8 | H52: 108617.6
A53: 2.15 | B53: Interligação Sensor de nível do mar ao painél de comando | C53: unid. | D53: 1 | E53: ='CPU - ITEM 2'!K90 -> 25344.96 | F53: 25344.96 | G53: ='CPU - ITEM 2'!L90 -> 24001.6 | H53: 24001.6
A54: 2.16 | B54: Interligação Sensor de nível da Laguna Jansen ao painél de comando | C54: unid. | D54: 1 | E54: ='CPU - ITEM 2'!K101 -> 62173.76 | F54: 62173.76 | G54: ='CPU - ITEM 2'!L101 -> 58723.84 | H54: 58723.84
A55: 2.17 | B55: Start up TELECOM | C55: unid. | D55: 1 | E55: ='CPU - ITEM 2'!K115 -> 124467.2 | F55: 124467.2 | G55: ='CPU - ITEM 2'!L115 -> 201113.92 | H55: 201113.92
B57: TOTAL DOS SERVIÇOS E FORNECIMENTOS | F57: =SUM(F37:F55) -> 1712558.604 | H57: =SUM(H37:H56) -> 1728765.244
B59: TOTAL DOS SERVIÇOS E FORNECIMENTOS | H59: =H57+H30 -> 4544890.218

Sheet CPU - ITEM 1
C1: Ministério do Desenvolvimento Regional - MDR
C2: Companhia do Desenvolvimento dos Vales do São Francisco e Parnaíba
C3: Codevasf - Brasília
A6: MODERNIZAÇÃO DA COMPORTA DA JANSEN
A7: *SINAPI MA jul/22
A8: 1 - SERVIÇOS DE RECUPERAÇÃO, FORNECIMENTO E MONTAGEM DE COMPORTA COM ACIONAMENTO, ITEM 3.2 DO T.R.
A10: Ítem | B10: Sinapi | C10: Discriminação | D10: Unidade | E10: Valor Unitário (R$) | G10: Valor unitário com BDI (R$) | I10: Quantidade | K10: Valor total com BDI (R$)
A11: 1.8 | C11: RECUPERAÇÃO DA INFRAESTRUTURA ITEM 3.1.3 DO T.R. | E11: Desonerado | F11: Onerado | G11: Desonerado | H11: Onerado | K11: Desonerado | L11: Onerado
C12: MÃO-DE-OBRA
A13: 1.8.1 | B13: 90779 | C13: ENGENHEIRO CIVIL RESPONSÁVEL PELA OBRA | D13: H | E13: 137.38 | F13: 158.83 | G13: =E13*BDI!D34*100 -> 4670.92 | H13: =F13*BDI!D35*100 -> 4447.24 | I13: 24 | J13: (3 dias x 8 horas/dia) | K13: =G13*I13 -> 112102.08 | L13: =H13*I13 -> 106733.76
A14: 1.8.2 | B14: 88278 | C14: MONTADOR DE ESTRUTURAS METÁLICAS | D14: H | E14: 15.71 | F14: 17.85 | G14: =E14*BDI!D34*100 -> 534.14 | H14: =F14*BDI!D35*100 -> 499.8 | I14: 24 | J14: (3 dias x 8 horas/dia) | K14: =G14*I14 -> 12819.36 | L14: =H14*I14 -> 11995.2
A15: 1.8.3 | B15: 88240 | C15: AJUDANTE DE ESTRUTURAS METALICAS | D15: H | E15: 11.6 | F15: 13.1 | G15: =E15*BDI!D34*100 -> 394.4 | H15: =F15*BDI!D35*100 -> 366.8 | I15: 24 | J15: (3 dias x 8 horas/dia) | K15: 9465.6 | L15: 8803.2
A16: 1.8.4 | B16: 88265 | C16: ELETRICISTA DE MANUTENÇÃO INDUSTRIAL | D16: H | E16: 19.09 | F16: 21.59 | G16: =E16*BDI!D34*100 -> 649.06 | H16: =F16*BDI!D35*100 -> 604.52 | I16: 24 | J16: (3 dias x 8 horas/dia) | K16: 15577.44 | L16: 14508.48
A17: 1.8.5 | B17: 88317 | C17: SOLDADOR | D17: H | E17: 19.57 | F17: 22.02 | G17: =E17*BDI!D34*100 -> 665.38 | H17: =F17*BDI!D35*100 -> 616.56 | I17: 24 | J17: (3 dias x 8 horas/dia) | K17: 15969.12 | L17: 14797.44
A18: 1.8.6 | B18: 88272 | C18: MAÇARIQUEIRO | D18: H | E18: 19.24 | F18: 21.65 | G18: =E18*BDI!D34*100 -> 654.16 | H18: =F18*BDI!D35*100 -> 606.2 | I18: 24 | J18: (3 dias x 8 horas/dia) | K18: 15699.84 | L18: 14548.8
A19: 1.8.7 | B19: 88279 | C19: MONTADOR ELETROMECÂNICO | D19: H | E19: 23.35 | F19: 26.52 | G19: =E19*BDI!D34*100 -> 793.9 | H19: =F19*BDI!D35*100 -> 742.56 | I19: 24 | J19: (3 dias x 8 horas/dia) | K19: =G19*I19 -> 19053.6 | L19: =H19*I19 -> 17821.44
A20: 1.8.8 | B20: 88243 | C20: AJUDANTE ESPECIALIZADO | D20: H | E20: 15.02 | F20: 16.89 | G20: =E20*BDI!D34*100 -> 510.68 | H20: =F20*BDI!D35*100 -> 472.92 | I20: 24 | J20: (3 dias x 8 horas/dia) | K20: 12256.32 | L20: 11350.08
A21: 1.8.9 | B21: 88309 | C21: PEDREIRO | D21: H | E21: 18.87 | F21: 21.34 | G21: =E21*BDI!D34*100 -> 641.58 | H21: =F21*BDI!D35*100 -> 597.52 | I21: 24 | J21: (3 dias x 8 horas/dia) | K21: 15397.92 | L21: 14340.48
A22: 1.8.10 | B22: 88310 | C22: PINTOR PARA TINTA EPÓXI | D22: H | E22: 19.94 | F22: 22.4 | G22: =E22*BDI!D34*100 -> 677.96 | H22: =F22*BDI!D35*100 -> 627.2 | I22: 24 | J22: (3 dias x 8 horas/dia) | K22: =G22*I22 -> 16271.04 | L22: =H22*I22 -> 15052.8
A23: 1.8.11 | B23: 100309 | C23: TÉCNICO SEGURANÇA DO TRABALHO | D23: H | E23: 23.14 | F23: 26.54 | G23: =E23*BDI!D34*100 -> 786.76 | H23: =F23*BDI!D35*100 -> 743.12 | I23: 24 | J23: (3 dias x 8 horas/dia) | K23: 18882.24 | L23: 17834.88
A24: 1.8.12 | B24: 100717 | C24: LIXAMENTO MANUAL | D24: M2 | E24: 6.79 | F24: 7.52 | G24: =E24*BDI!D34*100 -> 230.86 | H24: =F24*BDI!D35*100 -> 210.56 | I24: 20 | J24: (PERFIS + VIGAS) | K24: =G24*I24 -> 4617.2 | L24: 4211.2
A25: 1.8.13 | B25: 100721 | C25: PINTURA TIPO ZARCÃO | D25: M2 | E25: 20.3 | F25: 21.59 | G25: =E25*BDI!D34*100 -> 690.2 | H25: =F25*BDI!D35*100 -> 604.52 | I25: 20 | J25: (PERFIS + VIGAS) | K25: 13804 | L25: 12090.4
A26: 1.8.14 | B26: 100757 | C26: PINTURA DE ACABAMENTO | D26: M2 | E26: 39.85 | F26: 42.44 | G26: =E26*BDI!D34*100 -> 1354.9 | H26: =F26*BDI!D35*100 -> 1188.32 | I26: 20 | J26: (PERFIS + VIGAS) | K26: 27098 | L26: 23766.4
C27: EQUIPAMENTOS
A28: 1.8.15 | B28: 83762 | C28: GRUPO DE SOLDAGEM GERADOR A DIESEL | D28: H | E28: 7.13 | F28: 7.13 | G28: =E28*BDI!I34*100 -> 106.95 | H28: =F28*BDI!I35*100 -> 106.95 | I28: 24 | J28: (3 dias x 8 horas/dia) | K28: 2566.8 | L28: 2566.8
C29: T O T A L | K29: =SUM(K13:K28) -> 311580.56 | L29: =SUM(L13:L28) -> 290421.36
A31: Ítem | B31: Sinapi | C31: Discriminação | D31: Unidade | E31: Valor Unitário (R$) | G31: Valor unitário com BDI (R$) | I31: Quantidade | K31: Valor total com BDI (R$)
A32: 1.9 | C32: SUBSTITUIÇÃO DA COMPORTA, COMISSIONAMENTO, START UP | E32: Desonerado | F32: Onerado | G32: Desonerado | H32: Onerado | K32: Desonerado | L32: Onerado
C33: MÃO-DE-OBRA
A34: 1.9.1 | B34: 90779 | C34: ENGENHEIRO MECÂNICO RESPONSÁVEL PELA OBRA | D34: H | E34: 137.38 | F34: 158.83 | G34: =E34*BDI!D34*100 -> 4670.92 | H34: =F34*BDI!D35*100 -> 4447.24 | I34: 40 | J34: (5 dias x 8 horas/dia) | K34: =G34*I34 -> 186836.8 | L34: =H34*I34 -> 177889.6
A35: 1.9.2 | B35: 88278 | C35: MONTADOR DE ESTRUTURAS METÁLICAS | D35: H | E35: 15.71 | F35: 17.85 | G35: =E35*BDI!D34*100 -> 534.14 | H35: =F35*BDI!D35*100 -> 499.8 | I35: 40 | J35: (5 dias x 8 horas/dia) | K35: =G35*I35 -> 21365.6 | L35: =H35*I35 -> 19992
A36: 1.9.3 | B36: 88240 | C36: AJUDANTE DE ESTRUTURAS METALICAS | D36: H | E36: 11.6 | F36: 13.1 | G36: =E36*BDI!D34*100 -> 394.4 | H36: =F36*BDI!D35*100 -> 366.8 | I36: 40 | J36: (5 dias x 8 horas/dia) | K36: 15776 | L36: 14672
A37: 1.9.4 | B37: 88265 | C37: ELETRICISTA DE MANUTENÇÃO INDUSTRIAL | D37: H | E37: 19.09 | F37: 21.59 | G37: =E37*BDI!D34*100 -> 649.06 | H37: =F37*BDI!D35*100 -> 604.52 | I37: 40 | J37: (5 dias x 8 horas/dia) | K37: 25962.4 | L37: 24180.8
A38: 1.9.5 | B38: 88279 | C38: MONTADOR ELETROMECÂNICO | D38: H | E38: 23.35 | F38: 26.52 | G38: =E38*BDI!D34*100 -> 793.9 | H38: =F38*BDI!D35*100 -> 742.56 | I38: 40 | J38: (5 dias x 8 horas/dia) | K38: 31756 | L38: 29702.4
A39: 1.9.6 | B39: 88317 | C39: SOLDADOR | D39: H | E39: 19.57 | F39: 22.02 | G39: =E39*BDI!D34*100 -> 665.38 | H39: =F39*BDI!D35*100 -> 616.56 | I39: 40 | J39: (5 dias x 8 horas/dia) | K39: 26615.2 | L39: 24662.4
A40: 1.9.7 | B40: 88272 | C40: MAÇARIQUEIRO | D40: H | E40: 19.24 | F40: 21.65 | G40: =E40*BDI!D34*100 -> 654.16 | H40: =F40*BDI!D35*100 -> 606.2 | I40: 40 | J40: (5 dias x 8 horas/dia) | K40: 26166.4 | L40: 24248
A41: 1.9.8 | B41: 88243 | C41: AJUDANTE ESPECIALIZADO | D41: H | E41: 15.02 | F41: 16.89 | G41: =E41*BDI!D34*100 -> 510.68 | H41: =F41*BDI!D35*100 -> 472.92 | I41: 40 | J41: (5 dias x 8 horas/dia) | K41: 20427.2 | L41: 18916.8
A42: 1.9.9 | B42: 100309 | C42: TÉCNICO SEGURANÇA DO TRABALHO | D42: H | E42: 23.14 | F42: 26.54 | G42: =E42*BDI!D34*100 -> 786.76 | H42: =F42*BDI!D35*100 -> 743.12 | I42: 40 | J42: (5 dias x 8 horas/dia) | K42: 31470.4 | L42: 29724.8
C43: EQUIPAMENTOS
A44: 1.9.10 | B44: 83762 | C44: GRUPO DE SOLDAGEM GERADOR A DIESEL | D44: H | E44: 7.13 | F44: 7.13 | G44: =E44*BDI!I34*100 -> 106.95 | H44: =F44*BDI!I35*100 -> 106.95 | I44: 32 | J44: (4 dias x 8 horas/dia) | K44: 3422.4 | L44: 3422.4
A45: 1.9.11 | B45: 89272 | C45: GUINDASTE HUDRÁULICO 30 T LANÇA TELESCOPICA | D45: H | E45: 208.04 | F45: 211.95 | G45: =E45*BDI!I34*100 -> 3120.6 | H45: =F45*BDI!I35*100 -> 3179.25 | I45: 24 | J45: (3 dias x 8 horas/dia) | K45: 74894.4 | L45: 76302
C46: T O T A L | K46: =SUM(K34:K45) -> 464692.8 | L46: =SUM(L34:L45) -> 443713.2
A48: Ítem | B48: Sinapi | C48: Discriminação | D48: Unidade | E48: Valor Unitário (R$) | G48: Valor unitário com BDI (R$) | I48: Quantidade | K48: Valor total com BDI (R$)
A49: 1.10 | C49: MONTAGEM, COMISSIONAMENTO E STAR-UP PAINÉL DE COMANDO | E49: Desonerado | F49: Onerado | G49: Desonerado | H49: Onerado | K49: Desonerado | L49: Onerado
C50: MÃO-DE-OBRA
A51: 1.10.1 | B51: 88266 | C51: ELETROTÉCNICO | D51: H | E51: 21.79 | F51: 24.71 | G51: =E51*BDI!D34*100 -> 740.86 | H51: =F51*BDI!D35*100 -> 691.88 | I51: 40 | J51: (5 dias x 8 horas/dia) | K51: =G51*I51 -> 29634.4 | L51: =H51*I51 -> 27675.2
A52: 1.10.2 | B52: 88279 | C52: MONTADOR ELETROMECÂNICO | D52: H | E52: 23.35 | F52: 26.52 | G52: =E52*BDI!D34*100 -> 793.9 | H52: =F52*BDI!D35*100 -> 742.56 | I52: 40 | J52: (5 dias x 8 horas/dia) | K52: =G52*I52 -> 31756 | L52: =H52*I52 -> 29702.4
A53: 1.10.3 | B53: 88243 | C53: AJUDANTE ESPECIALIZADO | D53: H | E53: 15.02 | F53: 16.89 | G53: =E53*BDI!D34*100 -> 510.68 | H53: =F53*BDI!D35*100 -> 472.92 | I53: 40 | J53: (5 dias x 8 horas/dia) | K53: =G53*I53 -> 20427.2 | L53: =H53*I53 -> 18916.8
A54: 1.10.4 | B54: 88265 | C54: ELETRICISTA DE MANUTENÇÃO INDUSTRIAL | D54: H | E54: 19.09 | F54: 21.59 | G54: =E54*BDI!D34*100 -> 649.06 | H54: =F54*BDI!D35*100 -> 604.52 | I54: 16 | J54: (2 dias x 8 horas/dia) | K54: =G54*I54 -> 10384.96 | L54: =H54*I54 -> 9672.32
C55: T O T A L | K55: =SUM(K51:K54) -> 92202.56 | L55: =SUM(L51:L54) -> 85966.72
A57: Ítem | B57: Sinapi | C57: Discriminação | D57: Unidade | E57: Valor Unitário (R$) | G57: Valor unitário com BDI (R$) | I57: Quantidade | K57: Valor total com BDI (R$)
A58: 1.11 | C58: DESENVOLVIMENTO SOFTWARE GERENCIAMENTO | E58: Desonerado | F58: Onerado | G58: Desonerado | H58: Onerado | K58: Desonerado | L58: Onerado
C59: MÃO-DE-OBRA
A60: 1.11.1 | B60: 88266 | C60: ELETROTÉCNICO ESPECIALIZADO SOFTWARE | D60: H | E60: 21.79 | F60: 24.71 | G60: =E60*BDI!D34*100 -> 740.86 | H60: =F60*BDI!D35*100 -> 691.88 | I60: 40 | J60: (5 dias x 8 horas/dia) | K60: =G60*I60 -> 29634.4 | L60: =H60*I60 -> 27675.2
A61: 1.11.2 | B61: 88255 | C61: AUXILIAR TÉCNICO DE ENGENHARIA | D61: H | E61: 21.05 | F61: 24.14 | G61: =E61*BDI!D34*100 -> 715.7 | H61: =F61*BDI!D35*100 -> 675.92 | I61: 40 | J61: (5 dias x 8 horas/dia) | K61: =G61*I61 -> 28628 | L61: =H61*I61 -> 27036.8
A62: 1.11.3 | B62: 90775 | C62: DESENHISTA PROJETISTA | D62: H | E62: 16.57 | F62: 18.95 | G62: =E62*BDI!D34*100 -> 563.38 | H62: =F62*BDI!D35*100 -> 530.6 | I62: 40 | J62: (5 dias x 8 horas/dia) | K62: =G62*I62 -> 22535.2 | L62: =H62*I62 -> 21224
C63: T O T A L | K63: =SUM(K60:K62) -> 80797.6 | L63: =SUM(L60:L62) -> 75936

Sheet CPU - ITEM 2
C1: Ministério do Desenvolvimento Regional - MDR
C2: Companhia do Desenvolvimento dos Vales do São Francisco e Parnaíba
C3: Codevasf - Brasília
A6: MODERNIZAÇÃO DA COMPORTA DA JANSEN
A7: *SINAPI MA jul/22
A8: 2 - TELECOM
A10: Ítem | B10: Sinapi | C10: Discriminação | D10: Unidade | E10: Valor Unitário (R$) | G10: Valor unitário com BDI (R$) | I10: Quantidade | K10: Valor total com BDI (R$)
A11: 2.9 | C11: ESTUDO DE ENLACE | E11: Desonerado | F11: Onerado | G11: Desonerado | H11: Onerado | K11: Desonerado | L11: Onerado
C12: MÃO-DE-OBRA
A13: 2.9.1 | B13: 88266 | C13: ELETROTÉCNICO ESPECIALIZADO SOFTWARE | D13: H | E13: 21.79 | F13: 24.71 | G13: =E13*BDI!D34*100 -> 740.86 | H13: =F13*BDI!D35*100 -> 691.88 | I13: 40 | J13: (5 dias x 8 horas/dia) | K13: =G13*I13 -> 29634.4 | L13: =H13*I13 -> 27675.2
A14: 2.9.2 | B14: 88255 | C14: AUXILIAR TÉCNICO DE ENGENHARIA | D14: H | E14: 21.05 | F14: 24.14 | G14: =E14*BDI!D34*100 -> 715.7 | H14: =F14*BDI!D35*100 -> 675.92 | I14: 40 | J14: (5 dias x 8 horas/dia) | K14: =G14*I14 -> 28628 | L14: =H14*I14 -> 27036.8
A15: 2.9.3 | B15: 90775 | C15: DESENHISTA PROJETISTA | D15: H | E15: 16.57 | F15: 18.95 | G15: =E15*BDI!D34*100 -> 563.38 | H15: =F15*BDI!D35*100 -> 530.6 | I15: 40 | J15: (5 dias x 8 horas/dia) | K15: =G15*I15 -> 22535.2 | L15: =H15*I15 -> 21224
C16: T O T A L | K16: =SUM(K13:K15) -> 80797.6 | L16: =SUM(L13:L15) -> 75936
A18: Ítem | B18: Sinapi | C18: Discriminação | D18: Unidade | E18: Valor Unitário (R$) | G18: Valor unitário com BDI (R$) | I18: Quantidade | K18: Valor total com BDI (R$)
A19: 2.10 | C19: MONTAGEM DA TORRE 15m E EQUIPAMENTOS (LAGUNA JANSEN) | E19: Desonerado | F19: Onerado | G19: Desonerado | H19: Onerado | K19: Desonerado | L19: Onerado
C20: MÃO-DE-OBRA
A21: 2.10.1 | B21: 100302 | C21: COORDENADOR | D21: H | E21: 128.5 | F21: 148.56 | G21: =E21*BDI!D34*100 -> 4369 | H21: =F21*BDI!D35*100 -> 4159.68 | I21: 24 | J21: (3 dias x 8 horas/dia) | K21: =G21*I21 -> 104856 | L21: =H21*I21 -> 99832.32
A22: 2.10.2 | B22: 88278 | C22: MONTADOR DE ESTRUTURAS METÁLICAS | D22: H | E22: 15.71 | F22: 17.85 | G22: =E22*BDI!D34*100 -> 534.14 | H22: =F22*BDI!D35*100 -> 499.8 | I22: 16 | J22: (2 dias x 8 horas/dia) | K22: =G22*I22 -> 8546.24 | L22: =H22*I22 -> 7996.8
A23: 2.10.3 | B23: 88240 | C23: AJUDANTE DE ESTRUTURAS METALICAS | D23: H | E23: 11.6 | F23: 13.1 | G23: =E23*BDI!D34*100 -> 394.4 | H23: =F23*BDI!D35*100 -> 366.8 | I23: 16 | J23: (2 dias x 8 horas/dia) | K23: 6310.4 | L23: 5868.8
A24: 2.10.4 | B24: 88265 | C24: ELETRICISTA DE MANUTENÇÃO INDUSTRIAL | D24: H | E24: 19.09 | F24: 21.59 | G24: =E24*BDI!D34*100 -> 649.06 | H24: =F24*BDI!D35*100 -> 604.52 | I24: 8 | J24: (1 dias x 8 horas/dia) | K24: 5192.48 | L24: 4836.16
A25: 2.10.5 | B25: 88279 | C25: MONTADOR ELETROMECÂNICO | D25: H | E25: 23.35 | F25: 26.52 | G25: =E25*BDI!D34*100 -> 793.9 | H25: =F25*BDI!D35*100 -> 742.56 | I25: 8 | J25: (1 dias x 8 horas/dia) | K25: 6351.2 | L25: 5940.48
A26: 2.10.6 | B26: 88243 | C26: AJUDANTE ESPECIALIZADO | D26: H | E26: 15.02 | F26: 16.89 | G26: =E26*BDI!D34*100 -> 510.68 | H26: =F26*BDI!D35*100 -> 472.92 | I26: 16 | J26: (2 dias x 8 horas/dia) | K26: 8170.88 | L26: 7566.72
A27: 2.10.7 | B27: 88309 | C27: PEDREIRO | D27: H | E27: 18.87 | F27: 21.34 | G27: =E27*BDI!D34*100 -> 641.58 | H27: =F27*BDI!D35*100 -> 597.52 | I27: 8 | J27: (1 dias x 8 horas/dia) | K27: 5132.64 | L27: 4780.16
A28: 2.10.8 | B28: 88310 | C28: PINTOR PARA TINTA EPÓXI | D28: H | E28: 19.94 | F28: 22.4 | G28: =E28*BDI!D34*100 -> 677.96 | H28: =F28*BDI!D35*100 -> 627.2 | I28: 8 | J28: (1 dias x 8 horas/dia) | K28: =G28*I28 -> 5423.68 | L28: =H28*I28 -> 5017.6
A29: 2.10.9 | B29: 100309 | C29: TÉCNICO SEGURANÇA DO TRABALHO | D29: H | E29: 23.14 | F29: 26.54 | G29: =E29*BDI!D34*100 -> 786.76 | H29: =F29*BDI!D35*100 -> 743.12 | I29: 12 | J29: ( 3 dias x 4 horas/dia) | K29: 9441.12 | L29: 8917.44
A30: 2.10.10 | B30: 100717 | C30: LIXAMENTO MANUAL | D30: M2 | E30: 6.79 | F30: 7.52 | G30: =E30*BDI!D34*100 -> 230.86 | H30: =F30*BDI!D35*100 -> 210.56 | I30: 8 | J30: (PERFIS + VIGAS) | K30: 1846.88 | L30: 1684.48
A31: 2.10.11 | B31: 100721 | C31: PINTURA TIPO ZARCÃO | D31: M2 | E31: 20.3 | F31: 21.59 | G31: =E31*BDI!D34*100 -> 690.2 | H31: =F31*BDI!D35*100 -> 604.52 | I31: 10 | J31: (PERFIS + VIGAS) | K31: 6902 | L31: 6045.2
A32: 2.10.12 | B32: 100757 | C32: PINTURA DE ACABAMENTO | D32: M2 | E32: 39.85 | F32: 42.44 | G32: =E32*BDI!D34*100 -> 1354.9 | H32: =F32*BDI!D35*100 -> 1188.32 | I32: 10 | J32: (PERFIS + VIGAS) | K32: 13549 | L32: 11883.2
C33: T O T A L | K33: =SUM(K21:K32) -> 181722.52 | L33: =SUM(L21:L32) -> 170369.36
A35: Ítem | B35: Sinapi | C35: Discriminação | D35: Unidade | E35: Valor Unitário (R$) | G35: Valor unitário com BDI (R$) | I35: Quantidade | K35: Valor total com BDI (R$)
A36: 2.11 | C36: MONTAGEM DA TORRE 15m E EQUIPAMENTOS (PRÉDIO SINFRA) | E36: Desonerado | F36: Onerado | G36: Desonerado | H36: Onerado | K36: Desonerado | L36: Onerado
C37: MÃO-DE-OBRA
A38: 2.11.1 | B38: 100302 | C38: COORDENADOR | D38: H | E38: 128.5 | F38: 148.56 | G38: =E38*BDI!D34*100 -> 4369 | H38: =F38*BDI!D35*100 -> 4159.68 | I38: 32 | J38: (4 dias x 8 horas/dia) | K38: =G38*I38 -> 139808 | L38: =H38*I38 -> 133109.76
A39: 2.11.2 | B39: 88278 | C39: MONTADOR DE ESTRUTURAS METÁLICAS | D39: H | E39: 15.71 | F39: 17.85 | G39: =E39*BDI!D34*100 -> 534.14 | H39: =F39*BDI!D35*100 -> 499.8 | I39: 24 | J39: (3 dias x 8 horas/dia) | K39: =G39*I39 -> 12819.36 | L39: =H39*I39 -> 11995.2
A40: 2.11.3 | B40: 88240 | C40: AJUDANTE DE ESTRUTURAS METALICAS | D40: H | E40: 11.6 | F40: 13.1 | G40: =E40*BDI!D34*100 -> 394.4 | H40: =F40*BDI!D35*100 -> 366.8 | I40: 24 | J40: (3 dias x 8 horas/dia) | K40: 9465.6 | L40: 8803.2
A41: 2.11.4 | B41: 88265 | C41: ELETRICISTA DE MANUTENÇÃO INDUSTRIAL | D41: H | E41: 19.09 | F41: 21.59 | G41: =E41*BDI!D34*100 -> 649.06 | H41: =F41*BDI!D35*100 -> 604.52 | I41: 16 | J41: (2 dias x 8 horas/dia) | K41: 10384.96 | L41: 9672.32
A42: 2.11.5 | B42: 88279 | C42: MONTADOR ELETROMECÂNICO | D42: H | E42: 23.35 | F42: 26.52 | G42: =E42*BDI!D34*100 -> 793.9 | H42: =F42*BDI!D35*100 -> 742.56 | I42: 16 | J42: (2 dias x 8 horas/dia) | K42: 12702.4 | L42: 11880.96
A43: 2.11.6 | B43: 88243 | C43: AJUDANTE ESPECIALIZADO | D43: H | E43: 15.02 | F43: 16.89 | G43: =E43*BDI!D34*100 -> 510.68 | H43: =F43*BDI!D35*100 -> 472.92 | I43: 24 | J43: (3 dias x 8 horas/dia) | K43: 12256.32 | L43: 11350.08
A44: 2.11.7 | B44: 88310 | C44: PINTOR PARA TINTA EPÓXI | D44: H | E44: 19.94 | F44: 22.4 | G44: =E44*BDI!D34*100 -> 677.96 | H44: =F44*BDI!D35*100 -> 627.2 | I44: 8 | J44: (1 dias x 8 horas/dia) | K44: 5423.68 | L44: 5017.6
A45: 2.11.8 | B45: 100309 | C45: TÉCNICO SEGURANÇA DO TRABALHO | D45: H | E45: 23.14 | F45: 26.54 | G45: =E45*BDI!D34*100 -> 786.76 | H45: =F45*BDI!D35*100 -> 743.12 | I45: 16 | J45: (4 dias x 4 horas/dia) | K45: 12588.16 | L45: 11889.92
A46: 2.11.9 | B46: 100717 | C46: LIXAMENTO MANUAL | D46: M2 | E46: 6.79 | F46: 7.52 | G46: =E46*BDI!D34*100 -> 230.86 | H46: =F46*BDI!D35*100 -> 210.56 | I46: 8 | J46: (PERFIS + VIGAS) | K46: 1846.88 | L46: 1684.48
A47: 2.11.10 | B47: 100721 | C47: PINTURA TIPO ZARCÃO | D47: M2 | E47: 20.3 | F47: 21.59 | G47: =E47*BDI!D34*100 -> 690.2 | H47: =F47*BDI!D35*100 -> 604.52 | I47: 10 | J47: (PERFIS + VIGAS) | K47: 6902 | L47: 6045.2
A48: 2.11.11 | B48: 100757 | C48: PINTURA DE ACABAMENTO | D48: M2 | E48: 39.85 | F48: 42.44 | G48: =E48*BDI!D34*100 -> 1354.9 | H48: =F48*BDI!D35*100 -> 1188.32 | I48: 10 | J48: (PERFIS + VIGAS) | K48: 13549 | L48: 11883.2
C49: T O T A L | K49: =SUM(K38:K48) -> 237746.36 | L49: =SUM(L38:L48) -> 223331.92
A51: Ítem | B51: Sinapi | C51: Discriminação | D51: Unidade | E51: Valor Unitário (R$) | G51: Valor unitário com BDI (R$) | I51: Quantidade | K51: Valor total com BDI (R$)
A52: 2.12 | C52: INTERLIGAÇÃO TORRE/PAINÉL LAGUNA JANSEN | E52: Desonerado | F52: Onerado | G52: Desonerado | H52: Onerado | K52: Desonerado | L52: Onerado
C53: MÃO-DE-OBRA
A54: 2.12.1 | B54: 100302 | C54: COORDENADOR | D54: H | E54: 128.5 | F54: 148.56 | G54: =E54*BDI!D34*100 -> 4369 | H54: =F54*BDI!D35*100 -> 4159.68 | I54: 24 | J54: (3 dias x 8 horas/dia) | K54: =G54*I54 -> 104856 | L54: =H54*I54 -> 99832.32
A55: 2.12.2 | B55: 88279 | C55: MONTADOR ELETROMECÂNICO | D55: H | E55: 23.35 | F55: 26.52 | G55: =E55*BDI!D34*100 -> 793.9 | H55: =F55*BDI!D35*100 -> 742.56 | I55: 24 | J55: (3 dias x 8 horas/dia) | K55: =G55*I55 -> 19053.6 | L55: =H55*I55 -> 17821.44
A56: 2.12.3 | B56: 88243 | C56: AJUDANTE ESPECIALIZADO | D56: H | E56: 15.02 | F56: 16.89 | G56: =E56*BDI!D34*100 -> 510.68 | H56: =F56*BDI!D35*100 -> 472.92 | I56: 24 | J56: (3 dias x 8 horas/dia) | K56: 12256.32 | L56: 11350.08
A57: 2.12.5 | B57: 88266 | C57: ELETROTÉCNICO ESPECIALIZADO SOFTWARE | D57: H | E57: 21.79 | F57: 24.71 | G57: =E57*BDI!D34*100 -> 740.86 | H57: =F57*BDI!D35*100 -> 691.88 | I57: 24 | J57: (3 dias x 8 horas/dia) | K57: =G57*I57 -> 17780.64 | L57: =H57*I57 -> 16605.12
A58: 2.12.6 | B58: 88255 | C58: AUXILIAR TÉCNICO DE ENGENHARIA | D58: H | E58: 21.05 | F58: 24.14 | G58: =E58*BDI!D34*100 -> 715.7 | H58: =F58*BDI!D35*100 -> 675.92 | I58: 24 | J58: (3 dias x 8 horas/dia) | K58: =G58*I58 -> 17176.8 | L58: =H58*I58 -> 16222.08
C59: T O T A L | K59: =SUM(K54:K58) -> 171123.36 | L59: =SUM(L54:L58) -> 161831.04
A61: Ítem | B61: Sinapi | C61: Discriminação | D61: Unidade | E61: Valor Unitário (R$) | G61: Valor unitário com BDI (R$) | I61: Quantidade | K61: Valor total com BDI (R$)
A62: 2.13 | C62: INTERLIGAÇÃO TORRE SINFRA COM SERVIDOR | E62: Desonerado | F62: Onerado | G62: Desonerado | H62: Onerado | K62: Desonerado | L62: Onerado
C63: MÃO-DE-OBRA
A64: 2.13.1 | B64: 100302 | C64: COORDENADOR | D64: H | E64: 128.5 | F64: 148.56 | G64: =E64*BDI!D34*100 -> 4369 | H64: =F64*BDI!D35*100 -> 4159.68 | I64: 24 | J64: (3 dias x 8 horas/dia) | K64: =G64*I64 -> 104856 | L64: =H64*I64 -> 99832.32
A65: 2.13.2 | B65: 88279 | C65: MONTADOR ELETROMECÂNICO | D65: H | E65: 23.35 | F65: 26.52 | G65: =E65*BDI!D34*100 -> 793.9 | H65: =F65*BDI!D35*100 -> 742.56 | I65: 24 | J65: (3 dias x 8 horas/dia) | K65: =G65*I65 -> 19053.6 | L65: =H65*I65 -> 17821.44
A66: 2.13.3 | B66: 88243 | C66: AJUDANTE ESPECIALIZADO | D66: H | E66: 15.02 | F66: 16.89 | G66: =E66*BDI!D34*100 -> 510.68 | H66: =F66*BDI!D35*100 -> 472.92 | I66: 24 | J66: (3 dias x 8 horas/dia) | K66: 12256.32 | L66: 11350.08
A67: 2.13.5 | B67: 88266 | C67: ELETROTÉCNICO ESPECIALIZADO SOFTWARE | D67: H | E67: 21.79 | F67: 24.71 | G67: =E67*BDI!D34*100 -> 740.86 | H67: =F67*BDI!D35*100 -> 691.88 | I67: 24 | J67: (3 dias x 8 horas/dia) | K67: =G67*I67 -> 17780.64 | L67: =H67*I67 -> 16605.12
A68: 2.13.6 | B68: 88255 | C68: AUXILIAR TÉCNICO DE ENGENHARIA | D68: H | E68: 21.05 | F68: 24.14 | G68: =E68*BDI!D34*100 -> 715.7 | H68: =F68*BDI!D35*100 -> 675.92 | I68: 24 | J68: (3 dias x 8 horas/dia) | K68: =G68*I68 -> 17176.8 | L68: =H68*I68 -> 16222.08
C69: T O T A L | K69: =SUM(K64:K68) -> 171123.36 | L69: =SUM(L64:L68) -> 161831.04
A71: Ítem | B71: Sinapi | C71: Discriminação | D71: Unidade | E71: Valor Unitário (R$) | G71: Valor unitário com BDI (R$) | I71: Quantidade | K71: Valor total com BDI (R$)
A72: 2.14 | C72: MONTAGEM DE POSTE 4 X 4 ANTIVANDALISMO COM EQUIPAMENTOS | E72: Desonerado | F72: Onerado | G72: Desonerado | H72: Onerado | K72: Desonerado | L72: Onerado
C73: MÃO-DE-OBRA
A74: 2.14.1 | B74: 100302 | C74: COORDENADOR | D74: H | E74: 128.5 | F74: 148.56 | G74: =E74*BDI!D34*100 -> 4369 | H74: =F74*BDI!D35*100 -> 4159.68 | I74: 8 | J74: (1 dias x 8 horas/dia) | K74: =G74*I74 -> 34952 | L74: =H74*I74 -> 33277.44
A75: 2.14.2 | B75: 88278 | C75: MONTADOR DE ESTRUTURAS METÁLICAS | D75: H | E75: 15.71 | F75: 17.85 | G75: =E75*BDI!D34*100 -> 534.14 | H75: =F75*BDI!D35*100 -> 499.8 | I75: 8 | J75: (1 dias x 8 horas/dia) | K75: =G75*I75 -> 4273.12 | L75: =H75*I75 -> 3998.4
A76: 2.14.3 | B76: 88240 | C76: AJUDANTE DE ESTRUTURAS METALICAS | D76: H | E76: 11.6 | F76: 13.1 | G76: =E76*BDI!D34*100 -> 394.4 | H76: =F76*BDI!D35*100 -> 366.8 | I76: 8 | J76: (1 dias x 8 horas/dia) | K76: 3155.2 | L76: 2934.4
A77: 2.14.4 | B77: 88243 | C77: AJUDANTE ESPECIALIZADO | D77: H | E77: 14.68 | F77: 16.51 | G77: =E77*BDI!D72*100 -> 0 | H77: =F77*BDI!D73*100 -> 0 | I77: 24 | J77: (1 dias x 8 horas/dia) | K77: 0 | L77: 0
A78: 2.14.5 | B78: 88266 | C78: ELETROTÉCNICO ESPECIALIZADO SOFTWARE | D78: H | E78: 21.79 | F78: 24.71 | G78: =E78*BDI!D34*100 -> 740.86 | H78: =F78*BDI!D35*100 -> 691.88 | I78: 8 | J78: (1 dias x 8 horas/dia) | K78: =G78*I78 -> 5926.88 | L78: =H78*I78 -> 5535.04
A79: 2.14.4 | B79: 88243 | C79: AJUDANTE ESPECIALIZADO | D79: H | E79: 15.02 | F79: 16.89 | G79: =E79*BDI!D34*100 -> 510.68 | H79: =F79*BDI!D35*100 -> 472.92 | I79: 8 | J79: (1 dias x 8 horas/dia) | K79: =G79*I79 -> 4085.44 | L79: =H79*I79 -> 3783.36
A80: 2.10.7 | B80: 88309 | C80: PEDREIRO | D80: H | E80: 18.87 | F80: 21.34 | G80: =E80*BDI!D34*100 -> 641.58 | H80: =F80*BDI!D35*100 -> 597.52 | I80: 8 | J80: (1 dias x 8 horas/dia) | K80: =G80*I80 -> 5132.64 | L80: =H80*I80 -> 4780.16
C81: T O T A L | K81: =SUM(K74:K80) -> 57525.28 | L81: =SUM(L74:L80) -> 54308.8
A83: Ítem | B83: Sinapi | C83: Discriminação | D83: Unidade | E83: Valor Unitário (R$) | G83: Valor unitário com BDI (R$) | I83: Quantidade | K83: Valor total com BDI (R$)
A84: 2.15 | C84: INTERLIGAÇÃO SENSOR NÍVEL MAR AO PAINÉL | E84: Desonerado | F84: Onerado | G84: Desonerado | H84: Onerado | K84: Desonerado | L84: Onerado
C85: MÃO-DE-OBRA
A86: 2.15.1 | B86: 100302 | C86: COORDENADOR | D86: H | E86: 128.5 | F86: 148.56 | G86: =E86*BDI!D34*100 -> 4369 | H86: =F86*BDI!D35*100 -> 4159.68 | I86: 4 | J86: (1 dias x 4 horas/dia) | K86: =G86*I86 -> 17476 | L86: =H86*I86 -> 16638.72
A87: 2.15.2 | B87: 88243 | C87: AJUDANTE ESPECIALIZADO | D87: H | E87: 15.02 | F87: 16.89 | G87: =E87*BDI!D34*100 -> 510.68 | H87: =F87*BDI!D35*100 -> 472.92 | I87: 4 | J87: (1 dias x 4 horas/dia) | K87: =G87*I87 -> 2042.72 | L87: =H87*I87 -> 1891.68
A88: 2.15.3 | B88: 88266 | C88: ELETROTÉCNICO ESPECIALIZADO SOFTWARE | D88: H | E88: 21.79 | F88: 24.71 | G88: =E88*BDI!D34*100 -> 740.86 | H88: =F88*BDI!D35*100 -> 691.88 | I88: 4 | J88: (1 dias x 4 horas/dia) | K88: =G88*I88 -> 2963.44 | L88: =H88*I88 -> 2767.52
A89: 2.15.4 | B89: 88255 | C89: AUXILIAR TÉCNICO DE ENGENHARIA | D89: H | E89: 21.05 | F89: 24.14 | G89: =E89*BDI!D34*100 -> 715.7 | H89: =F89*BDI!D35*100 -> 675.92 | I89: 4 | J89: (1 dias x 4 horas/dia) | K89: =G89*I89 -> 2862.8 | L89: =H89*I89 -> 2703.68
C90: T O T A L | K90: =SUM(K86:K89) -> 25344.96 | L90: =SUM(L86:L89) -> 24001.6
A92: Ítem | B92: Sinapi | C92: Discriminação | D92: Unidade | E92: Valor Unitário (R$) | G92: Valor unitário com BDI (R$) | I92: Quantidade | K92: Valor total com BDI (R$)
A93: 2.16 | C93: INTERLIGAÇÃO SENSOR NÍVEL LAGUNA JANSENAO PAINÉL | E93: Desonerado | F93: Onerado | G93: Desonerado | H93: Onerado | K93: Desonerado | L93: Onerado
C94: MÃO-DE-OBRA
A95: 2.16.1 | B95: 100302 | C95: COORDENADOR | D95: H | E95: 128.5 | F95: 148.56 | G95: =E95*BDI!D34*100 -> 4369 | H95: =F95*BDI!D35*100 -> 4159.68 | I95: 8 | J95: (1 dias x 8 horas/dia) | K95: =G95*I95 -> 34952 | L95: =H95*I95 -> 33277.44
A96: 2.16.2 | B96: 88279 | C96: MONTADOR ELETROMECÂNICO | D96: H | E96: 23.35 | F96: 26.52 | G96: =E96*BDI!D34*100 -> 793.9 | H96: =F96*BDI!D35*100 -> 742.56 | I96: 8 | J96: (1 dias x 8 horas/dia) | K96: =G96*I96 -> 6351.2 | L96: =H96*I96 -> 5940.48
A97: 2.16.3 | B97: 88243 | C97: AJUDANTE ESPECIALIZADO | D97: H | E97: 15.02 | F97: 16.89 | G97: =E97*BDI!D34*100 -> 510.68 | H97: =F97*BDI!D35*100 -> 472.92 | I97: 8 | J97: (1 dias x 8 horas/dia) | K97: =G97*I97 -> 4085.44 | L97: =H97*I97 -> 3783.36
A98: 2.16.4 | B98: 88309 | C98: PEDREIRO | D98: H | E98: 18.87 | F98: 21.34 | G98: =E98*BDI!D34*100 -> 641.58 | H98: =F98*BDI!D35*100 -> 597.52 | I98: 8 | J98: (1 dias x 8 horas/dia) | K98: 5132.64 | L98: 4780.16
A99: 2.16.5 | B99: 88266 | C99: ELETROTÉCNICO ESPECIALIZADO SOFTWARE | D99: H | E99: 21.79 | F99: 24.71 | G99: =E99*BDI!D34*100 -> 740.86 | H99: =F99*BDI!D35*100 -> 691.88 | I99: 8 | J99: (1 dias x 8 horas/dia) | K99: =G99*I99 -> 5926.88 | L99: =H99*I99 -> 5535.04
A100: 2.16.6 | B100: 88255 | C100: AUXILIAR TÉCNICO DE ENGENHARIA | D100: H | E100: 21.05 | F100: 24.14 | G100: =E100*BDI!D34*100 -> 715.7 | H100: =F100*BDI!D35*100 -> 675.92 | I100: 8 | J100: (1 dias x 8 horas/dia) | K100: =G100*I100 -> 5725.6 | L100: =H100*I100 -> 5407.36
C101: T O T A L | K101: =SUM(K95:K100) -> 62173.76 | L101: =SUM(L95:L100) -> 58723.84
A103: Ítem | B103: Sinapi | C103: Discriminação | D103: Unidade | E103: Valor Unitário (R$) | G103: Valor unitário com BDI (R$) | I103: Quantidade | K103: Valor total com BDI (R$)
A104: 2.17 | C104: START UP TELECOM | E104: Desonerado | F104: Onerado | G104: Desonerado | H104: Onerado | K104: Desonerado | L104: Onerado
C105: MÃO-DE-OBRA
A106: 2.17.1 | B106: 90779 | C106: ENGENHEIRO CIVIL RESPONSÁVEL PELA OBRA | D106: H | E106: 137.38 | F106: 158.83 | G106: =E106*BDI!D34*100 -> 4670.92 | H106: =F106*BDI!D35*100 -> 4447.24 | I106: 16 | J106: (2 dias x 8 horas/dia) | K106: =G106*I106 -> 74734.72 | L106: =H106*I106 -> 71155.84
A107: 2.17.2 | B107: 88278 | C107: MONTADOR DE ESTRUTURAS METÁLICAS | D107: H | E107: 15.71 | F107: 17.85 | G107: =E107*BDI!D34*100 -> 534.14 | H107: =F107*BDI!D35*100 -> 499.8 | I107: 16 | J107: (2 dias x 8 horas/dia) | K107: =G107*I107 -> 8546.24 | L107: =H107*I107 -> 7996.8
A108: 2.17.3 | B108: 88240 | C108: AJUDANTE DE ESTRUTURAS METALICAS | D108: H | E108: 11.6 | F108: 13.1 | G108: =E108*BDI!D34*100 -> 394.4 | H108: =F108*BDI!D35*100 -> 366.8 | I108: 12 | J108: (2 dias x 8 horas/dia) | K108: 4732.8 | L108: 4401.6
A109: 2.17.4 | B109: 88265 | C109: ELETRICISTA DE MANUTENÇÃO INDUSTRIAL | D109: H | E109: 19.09 | F109: 21.59 | G109: =E109*BDI!D34*100 -> 649.06 | H109: =F109*BDI!D35*100 -> 604.52 | I109: 16 | J109: (2 dias x 8 horas/dia) | K109: 10384.96 | L109: 9672.32
A110: 2.17.5 | B110: 100302 | C110: COORDENADOR | D110: H | E110: 128.5 | F110: 148.56 | G110: =E110*BDI!D34*100 -> 4369 | H110: =F110*BDI!D35*100 -> 4159.68 | I110: 16 | J110: (2 dias x 8 horas/dia) | K110: =G110*I110 -> 69904 | L110: =H110*I110 -> 66554.88
A111: 2.17.6 | B111: 88279 | C111: MONTADOR ELETROMECÂNICO | D111: H | E111: 23.35 | F111: 26.52 | G111: =E111*BDI!D34*100 -> 793.9 | H111: =F111*BDI!D35*100 -> 742.56 | I111: 16 | J111: (2 dias x 8 horas/dia) | K111: =G111*I111 -> 12702.4 | L111: =H111*I111 -> 11880.96
A112: 2.17.7 | B112: 88243 | C112: AJUDANTE ESPECIALIZADO | D112: H | E112: 15.02 | F112: 16.89 | G112: =E112*BDI!D34*100 -> 510.68 | H112: =F112*BDI!D35*100 -> 472.92 | I112: 16 | J112: (2 dias x 8 horas/dia) | K112: 8170.88 | L112: 7566.72
A113: 2.17.8 | B113: 88266 | C113: ELETROTÉCNICO ESPECIALIZADO SOFTWARE | D113: H | E113: 21.79 | F113: 24.71 | G113: =E113*BDI!D34*100 -> 740.86 | H113: =F113*BDI!D35*100 -> 691.88 | I113: 16 | J113: (2 dias x 8 horas/dia) | K113: =G113*I113 -> 11853.76 | L113: =H113*I113 -> 11070.08
A114: 2.17.9 | B114: 88255 | C114: AUXILIAR TÉCNICO DE ENGENHARIA | D114: H | E114: 21.05 | F114: 24.14 | G114: =E114*BDI!D34*100 -> 715.7 | H114: =F114*BDI!D35*100 -> 675.92 | I114: 16 | J114: (2 dias x 8 horas/dia) | K114: =G114*I114 -> 11451.2 | L114: =H114*I114 -> 10814.72
C115: T O T A L | K115: =SUM(K109:K114) -> 124467.2 | L115: =SUM(L106:L114) -> 201113.92

Sheet COTAÇÕES
D1: Ministério do Desenvolvimento Regional - MDR
D2: Companhia do Desenvolvimento dos Vales do São Francisco e Parnaíba
D3: Codevasf - Brasília
A7: Cotações - Equipamentos e materiais /Laguna da Jansen
A9: Item | B9: Descrição | C9: Cotação 1 | E9: Cotação 2 | G9: Cotação 3 | I9: Valor Mediana | J9: Valor Médio | K9: Menor valor (mediana/média) c/ BDI DESONERADO | L9: Menor valor (mediana/média) c/ BDI ONERADO | N9: D, Padrão | O9: CV
C10: VALOR | D10: EMPRESA | E10: VALOR | F10: EMPRESA | G10: VALOR | H10: EMPRESA | I10: R$ | J10: R$ | K10: R$ | L10: R$ | Q10: =SUM(L11:L39) -> 2061298.042
A11: 1.2 | B11: Comporta deslizante em aço inoxidável 4 x 3 m, ítem 3.2.2 do T.R. | C11: 902000 | D11: All Energy Engenharia | E11: 910000 | F11: EBSE ENGENHARIA E SOLUÇÕES | G11: 850000 | H11: HYDROSTEC | I11: =MEDIAN(C11,E11,G11) -> 902000 | J11: =(C11+E11+G11)/3 -> 887333.3333 | K11: =MINA(I11,J11)*(1+BDI!I34) -> 1020433.333 | L11: =MINA(I11,J11)*(1+BDI!I35) -> 1020433.333 | N11: =_xlfn.STDEV.P(E11,G11,I11) -> 26599.91646 | O11: =N11/J11 -> 0.02997736641 | Q11: =L11/$Q$10 -> 0.4950440511
A13: 1.3 | B13: Cilindro Hidráulico para acionamento da comporta, ítem 3.2.3.2 do T.R. | C13: 115000 | D13: All Energy Engenharia | E13: 85000 | F13: EBSE ENGENHARIA E SOLUÇÕES | G13: 98000 | H13: HYDROSTEC | I13: =MEDIAN(C13,E13,G13) -> 98000 | J13: =(C13+E13+G13)/3 -> 99333.33333 | K13: =MINA(I13,J13)*(1+BDI!I34) -> 112700 | L13: =MINA(I13,J13)*(1+BDI!I35) -> 112700 | N13: =_xlfn.STDEV.P(E13,G13,I13) -> 6128.25877 | O13: =N13/J13 -> 0.06169388024 | Q13: =L13/$Q$10 -> 0.05467428664
A15: 1.4 | B15: Unidade Oleodinâmica para acionar o cilindro hidraúlico ítem 3.2.3.1 do T.R. | C15: 340000 | D15: All Energy Engenharia | E15: 325700 | F15: EBSE ENGENHARIA E SOLUÇÕES | G15: 300000 | H15: HYDROSTEC | I15: =MEDIAN(C15,E15,G15) -> 325700 | J15: =(C15+E15+G15)/3 -> 321900 | K15: =MINA(I15,J15)*(1+BDI!I34) -> 370185 | L15: =MINA(I15,J15)*(1+BDI!I35) -> 370185 | N15: 12115.09618 | O15: 0.03763621058 | Q15: 0.1795882946
A17: 1.5 | B17: Quadro de Comando Local ítem 3.2.4 do T.R. | C17: 80000 | D17: All Energy Engenharia | E17: 97000 | F17: EBSE ENGENHARIA E SOLUÇÕES | G17: 102000 | H17: HYDROSTEC | I17: =MEDIAN(C17,E17,G17) -> 97000 | J17: =(C17+E17+G17)/3 -> 93000 | K17: =MINA(I17,J17)*(1+BDI!I34) -> 106950 | L17: =MINA(I17,J17)*(1+BDI!I35) -> 106950 | N17: 2357.022604 | O17: 0.02534432907 | Q17: 0.05188478222
A19: 1.6 | B19: Sensor de Nível Ultrassônico, alcance 20 metros | C19: 19000 | D19: All Energy Engenharia | E19: 12000 | F19: EBSE ENGENHARIA E SOLUÇÕES | G19: 15000 | H19: HYDROSTEC | I19: =MEDIAN(C19,E19,G19) -> 15000 | J19: =(C19+E19+G19)/3 -> 15333.33333 | K19: =MINA(I19,J19)*(1+BDI!I34) -> 17250 | L19: =MINA(I19,J19)*(1+BDI!I35) -> 17250 | N19: 1414.213562 | O19: 0.09223131929 | Q19: 0.008368513261
A21: 1.7 | B21: Licensa software Elipse *dominio exclusivo de uma empresa | C21: 126000 | D21: Norte Telecomunicações | E21: 136000 | F21: SEG | G21: 146423.48 | H21: VECTOR | I21: =MEDIAN(C21,E21,G21) -> 136000 | J21: =(C21+E21+G21)/3 -> 136141.16 | K21: =MINA(I21,J21)*(1+BDI!I34) -> 156400 | L21: =MINA(I21,J21)*(1+BDI!I35) -> 156400 | N21: 4913.675594 | O21: 0.03609250571 | Q21: 0.07587452024
A23: 2.1 | B23: Torre de comunicação completa de 15 metros conforme item 3.3.1.2 do T.R. | C23: =(463910-166400-128000)/2 -> 84755 | D23: ALTALE | E23: =4000+32050+3800+2670+1600+19900 -> 64020 | F23: TORRE NORTE | G23: =4000+43400+5200+3800+2200+37500 -> 96100 | H23: NS AUTOMAÇÃO | I23: =MEDIAN(C23,E23,G23) -> 84755 | J23: =(C23+E23+G23)/3 -> 81625 | K23: =MINA(I23,J23)*(1+BDI!I34) -> 93868.75 | L23: =MINA(I23,J23)*(1+BDI!I35) -> 93868.75 | N23: 13282.30088 | O23: 0.1627234411 | Q23: 0.04553865966
A25: 2.2 | B25: Poste 4 x 4 m antivandalismo para suporte sensor de nível | C25: =4000+14184+16000 -> 34184 | D25: ALTALE | E25: =4000+9456+1000+19900 -> 34356 | F25: TORRE NORTE | G25: =4000+11820+29600 -> 45420 | H25: NS AUTOMAÇÃO | I25: =MEDIAN(C25,E25,G25) -> 34356 | J25: =(C25+E25+G25)/3 -> 37986.66667 | K25: =MINA(I25,J25)*(1+BDI!I34) -> 39509.4 | L25: =MINA(I25,J25)*(1+BDI!I35) -> 39509.4 | N25: 5215.619618 | O25: 0.1373013237 | Q25: 0.01916724277
A27: 2.3 | B27: Painél tipo Rack Telecon, ventilação, IP 66, IP 67, resistência marinha | C27: 4900 | D27: Norte Telecomunicações | E27: 10800 | F27: SEG | G27: 12402.97 | H27: VECTOR | I27: =MEDIAN(C27,E27,G27) -> 10800 | J27: =(C27+E27+G27)/3 -> 9367.656667 | K27: =MINA(I27,J27)*(1+BDI!I34) -> 10772.80517 | L27: =MINA(I27,J27)*(1+BDI!I35) -> 10772.80517 | N27: 755.6473047 | O27: 0.08066556361 | Q27: 0.005226223936
A29: 2.4 | B29: Rádio PTP de 5Ghz | C29: 17700 | D29: Norte Telecomunicações | E29: 37460 | F29: SEG | G29: 60858.58 | H29: VECTOR | I29: =MEDIAN(C29,E29,G29) -> 37460 | J29: =(C29+E29+G29)/3 -> 38672.86 | K29: =MINA(I29,J29)*(1+BDI!I34) -> 43079 | L29: =MINA(I29,J29)*(1+BDI!I35) -> 43079 | N29: 11030.19639 | O29: 0.2852180157 | Q29: 0.02089896712
A31: 2.5 | B31: Câmera espeed Dome PTZ, zoom ótico 32x, CMOS de 1/1.8", infravermelho 200m | C31: 9000 | D31: Norte Telecomunicações | E31: 18000 | F31: SEG | G31: 27643.63 | H31: VECTOR | I31: =MEDIAN(C31,E31,G31) -> 18000 | J31: =(C31+E31+G31)/3 -> 18214.54333 | K31: =MINA(I31,J31)*(1+BDI!I34) -> 20700 | L31: =MINA(I31,J31)*(1+BDI!I35) -> 20700 | N31: 4546.050779 | O31: 0.2495835715 | Q31: 0.01004221591
A33: 2.6 | B33: Workstation para servidor elipse e cameras, windows 10, sata de 4 TB, etc | C33: 35000 | D33: Norte Telecomunicações | E33: =C33 -> 35000 | F33: SEG | G33: 47125 | H33: VECTOR | I33: =MEDIAN(C33,E33,G33) -> 35000 | J33: =(C33+E33+G33)/3 -> 39041.66667 | K33: =MINA(I33,J33)*(1+BDI!I34) -> 40250 | L33: =MINA(I33,J33)*(1+BDI!I35) -> 40250 | N33: 5715.779815 | O33: 0.1464020443 | Q33: 0.01952653094
A35: 2.7 | B35: No Break tipo torre 220V/ 2.200VA, dysplay informativo, comunicação ethernet | C35: 2875 | D35: Norte Telecomunicações | E35: 12500 | F35: SEG | G35: 13548.27 | H35: VECTOR | I35: =MEDIAN(C35,E35,G35) -> 12500 | J35: =(C35+E35+G35)/3 -> 9641.09 | K35: =MINA(I35,J35)*(1+BDI!I34) -> 11087.2535 | L35: =MINA(I35,J35)*(1+BDI!I35) -> 11087.2535 | N35: 494.159217 | O35: 0.05125553407 | Q35: 0.005378772635
A37: 2.8 | B37: CX de Cabo LAN CAT 6 F/UTP 4p x 23AWG – 305 metros – ANSI/TIA-568.2-D | C37: 3000 | D37: Norte Telecomunicações | E37: 3500 | F37: SEG | I37: =MEDIAN(C37,E37) -> 3250 | J37: =(C37+E37+G37)/2 -> 3250 | K37: =MINA(I37,J37)*(1+BDI!I34) -> 3737.5 | L37: =MINA(I37,J37)*(1+BDI!I35) -> 3737.5 | N37: 125 | O37: 0.03846153846 | Q37: 0.001813177873
A39: 2.9 | B39: Bobina 500m Cabo maritimo blindado,não halogêno,antichama,condutor dreno flexivel | C39: 12000 | D39: Norte Telecomunicações | E39: 13000 | F39: SEG | I39: =MEDIAN(C39,E39) -> 12500 | J39: =(C39+E39+G39)/2 -> 12500 | K39: =MINA(I39,J39)*(1+BDI!I34) -> 14375 | L39: =MINA(I39,J39)*(1+BDI!I35) -> 14375 | N39: 250 | O39: 0.02 | Q39: 0.006973761051
B41: Observação. Fornecimento de torre e poste, incluso: Projeto, a torre/poste, aterramento, balizamento, esteira e transporte)

Sheet BDI
B1: Ministério do Desenvolvimento Regional - MDR
B2: Companhia do Desenvolvimento dos Vales do São Francisco e Parnaíba
B3: Codevasf - Brasília
A7: BDI Serviços | F7: BDI FORNECIMENTO
A9: DETALHAMENTO DO BDI | F9: DETALHAMENTO DO BDI
A10: Serviços desonerados e onerados | F10: FORMECIMENTO sendo os serviços desonerados ou com desoneração
A13: Item | B13: Descrição dos serviços | C13: Valores de Referência (%) | D13: Preço de Venda (%) | F13: Item | G13: Descrição dos serviços | H13: Valores de Referência (%) | I13: Adotado (%)
A15: 1 | B15: Administração Central (Ac) | C15: 3,43% - 4,93% - 6,71% | D15: 0.0493 | F15: 1 | G15: Administração Central (Ac ) | H15: 1,50% - 3,45% - 4,49% | I15: 0.0345
A16: 1.1 | B16: ESCRITÓRIO CENTRAL | F16: 1.1 | G16: ESCRITÓRIO CENTRAL
A17: 1.2 | B17: VIAGENS | F17: 1.2 | G17: VIAGENS
A18: 1.3 | B18: OUTROS | F18: 1.3 | G18: OUTROS
A20: 2 | B20: Impostos e Taxas (I) | D20: =SUM(D21:D24) -> 0.1315 | F20: 2 | G20: Impostos e Taxas ( I ) | I20: =SUM(I21:I24) -> 0.0365
A21: 2.1 | B21: ISS | C21: 0.05 | D21: 0.05 | F21: 2.1 | G21: ISS | H21: - | I21: 0
A22: 2.2 | B22: PIS | C22: de 0,65% a 0,65% | D22: 0.0065 | F22: 2.2 | G22: PIS | H22: 0.0065 | I22: 0.0065
A23: 2.3 | B23: Cofins | C23: de 3,00% a 3,00% | D23: 0.03 | F23: 2.3 | G23: Cofins | H23: 0.03 | I23: 0.03
A24: 2.4 | B24: CPRB | C24: 0 | D24: 0.045 | F24: 2.4 | G24: CPRB
A26: 3 | B26: Garantia e Seguros ( Gs ) | C26: 0,28% - 0,49% - 0,75% | D26: 0.0049 | F26: 3 | G26: Garantia e Seguros ( Gs ) | H26: 0,30% - 0,48% - 0,82% | I26: 0.0048
A28: 4 | B28: Risco ( R ) | C28: 1,0% - 1,39% - 6,71% | D28: 0.0139 | F28: 4 | G28: Risco ( R ) | H28: 0,56 - 0,85% - 0,89% | I28: 0.0085
A30: 4 | B30: Despesas Financeiras (DF) | C30: 0,94% - 0,99% - 1,17% | D30: 0.0099 | F30: 5 | G30: Despesas Financeiras ( Df ) | H30: de 0,85% - 0,85% - 1,11% | I30: 0.0085
A32: 5 | B32: Lucro (L) | C32: 6,74% - 8,04% - 9,40% | D32: 0.0804 | F32: 6 | G32: Lucro ( L ) | H32: de 3,50% - 5,11% - 6,22% | I32: 0.0511
B34: BDI (%) desonerado | D34: =ROUND(((((1+D15+D26+D28)*(1+D30)*(1+D32))/(1-D20))-1),2) -> 0.34 | G34: BDI (%) desonerado | I34: =ROUND((((1+I15+I28+I26)*(1+I30)*(1+I32))/(1-I20))-1,2) -> 0.15
B35: BDI (%) não desonerado | D35: =ROUND(((((1+D15+D26+D28)*(1+D30)*(1+D32))/(1-(D21+D22+D23)))-1),2) -> 0.28 | G35: BDI (%) não desonerado | I35: =ROUND(((((1+I15+I26+I28)*(1+I30)*(1+I32))/(1-(I21+I22+I23)))-1),2) -> 0.15
B37: OBS1: ADOTADO VALOR MÉDIO QUARTIL | G37: OBS1: ADOTADO VALOR 3º QUARTIL
B38: OBS2: Conforme LEI 13.161 /2015: Em orçamento onde optar-se pelos erviços com desoneração/desonerado, deverá ser incluído no CPRB o percentual de 4,5% referente a contribuíção previdenciaária. | G38: OBS2: Conforme LEI 13.161 /2015: Em orçamento onde optar-se pelos erviços com desoneração/desonerado, deverá ser incluído no CPRB o percentual de 4,5% referente a contribuíção previdenciaária.
B39: OBS3:Adotado Construção de redes de abastecimento de água, coleta de esgoto, e construção correlatas | G39: OBS3:Adotado Construção de redes de abastecimento de água, coleta de esgoto, e construção correlatas
B40: OBS4: ISS DE 5% REFERÊNCIADO SÃO LUÍS/MA

Sheet Det.Encargos Sociais
A2: Detalhamento dos Encargos Sociais – Horista e Mensalista – Com desoneração e Sem Desoneração
A3: MARANHÃO | D3: VIGÊNCIA A PARTIR DE 10/2021
C5: COM DESONERAÇÃO | E5: SEM DESONERAÇÃO
A6: DISCRIMINAÇÃO | C6: HORISTA | D6: MENSALISTA | E6: HORISTA | F6: MENSALISTA
C7: % | D7: % | E7: % | F7: %
A8: A | B8: ENCARGOS SOCIAIS BÁSICOS
A9: A1 | B9: INSS | C9: 0 | D9: 0 | E9: 0.2 | F9: 0.2
A10: A2 | B10: SESI | C10: 0.015 | D10: 0.015 | E10: 0.015 | F10: 0.015
A11: A3 | B11: SENAI | C11: 0.01 | D11: 0.01 | E11: 0.01 | F11: 0.01
A12: A4 | B12: INCRA | C12: 0.002 | D12: 0.002 | E12: 0.002 | F12: 0.002
A13: A5 | B13: SEBRAE | C13: 0.006 | D13: 0.006 | E13: 0.006 | F13: 0.006
A14: A6 | B14: Salário Educação | C14: 0.025 | D14: 0.025 | E14: 0.025 | F14: 0.025
A15: A7 | B15: Seguro Contra Acidente de Trabalho | C15: 0.03 | D15: 0.03 | E15: 0.03 | F15: 0.03
A16: A8 | B16: FGTS | C16: 0.08 | D16: 0.08 | E16: 0.08 | F16: 0.08
A17: A9 | B17: SECONCI | C17: 0.01 | D17: 0.01 | E17: 0.01 | F17: 0.01
A18: SUBTOTAL DE “A”: | C18: 0.178 | D18: 0.178 | E18: 0.378 | F18: 0.378
A19: B | B19: ENCARGOS SOCIAIS QUE RECEBEM INCIDÊNCIA DE “A”
A20: B1 | B20: Repouso Semanal Remunerado | C20: 0.1787 | D20: Não incide | E20: 0.1787 | F20: Não incide
A21: B2 | B21: Feriados | C21: 0.0395 | D21: Não incide | E21: 0.0395 | F21: Não incide
A22: B3 | B22: Auxílio-Enfermidade | C22: 0.0085 | D22: 0.0066 | E22: 0.0085 | F22: 0.0066
A23: B4 | B23: 13º Salário | C23: 0.1084 | D23: 0.0833 | E23: 0.1084 | F23: 0.0833
A24: B5 | B24: Licença Paternidade | C24: 0.0007 | D24: 0.0006 | E24: 0.0007 | F24: 0.0006
A25: B6 | B25: Faltas Justificadas | C25: 0.0072 | D25: 0.0056 | E25: 0.0072 | F25: 0.0056
A26: B7 | B26: Dias de Chuva | C26: 0.0148 | D26: Não incide | E26: 0.0148 | F26: Não incide
A27: B8 | B27: Auxílio Acidente de Trabalho | C27: 0.001 | D27: 0.0008 | E27: 0.001 | F27: 0.0008
A28: B9 | B28: Férias Gozadas | C28: 0.0913 | D28: 0.0702 | E28: 0.0913 | F28: 0.0702
A29: B10 | B29: Salário Maternidade | C29: 0.0003 | D29: 0.0002 | E29: 0.0003 | F29: 0.0002
A30: SUBTOTAL DE “B”: | C30: 0.4504 | D30: 0.1673 | E30: 0.4504 | F30: 0.1673
A31: C | B31: ENCARGOS SOCIAIS QUE NÃO RECEBEM INCIDÊNCIA DE “A”
A32: C1 | B32: Aviso Prévio Indenizado | C32: 0.0449 | D32: 0.0346 | E32: 0.0449 | F32: 0.0346
A33: C2 | B33: Aviso Prévio Trabalhado | C33: 0.0011 | D33: 0.0008 | E33: 0.0011 | F33: 0.0008
A34: C3 | B34: Férias Indenizadas | C34: 0.0454 | D34: 0.0349 | E34: 0.0454 | F34: 0.0349
A35: C4 | B35: Depósito Rescisão Sem Justa Causa | C35: 0.0311 | D35: 0.0239 | E35: 0.0311 | F35: 0.0239
A36: C5 | B36: Indenização Adicional | C36: 0.0038 | D36: 0.0029 | E36: 0.0038 | F36: 0.0029
A37: SUBTOTAL DE “C”: | C37: 0.1263 | D37: 0.0971 | E37: 0.1263 | F37: 0.0971
A38: D | B38: REINCIDÊNCIAS DE UM GRUPO SOBRE O OUTRO
A39: D1 | B39: Reincidência de “A” sobre “B” | C39: 0.0802 | D39: 0.0298 | E39: 0.1703 | F39: 0.0632
A40: D2 | B40: Reincidência de Grupo A sobre Aviso Prévio Trabalhado e Reincidência do FGTS sobre Aviso Prévio Indenizado | C40: 0.0038 | D40: 0.0029 | E40: 0.004 | F40: 0.0031
A41: SUBTOTAL DE “D”: | C41: 0.084 | D41: 0.0327 | E41: 0.1743 | F41: 0.0663
A42: TOTAIS DE ENCARGOS SOCIAIS: | C42: 0.8387 | D42: 0.4751 | E42: 1.129 | F42: 0.7087
B44: Fonte: Informação dias de chuva: INMET

Sheet Cronograma
A5: CRONOGRAMA FÍSICO-FINANCEIRO
A7: Item | F7: DURAÇÃO (DIAS) | G7: DURAÇÃO (MESES) | H7: MÊS | AF7: Custo R$
H8: 1 | I8: 2 | J8: 3 | K8: 4 | L8: 5 | M8: 6 | N8: 7 | O8: 8 | P8: 9 | Q8: 10 | R8: 11 | S8: 12 | T8: 13 | U8: 14 | V8: 15 | W8: 16 | X8: 17 | Y8: 18 | Z8: 19 | AA8: 20 | AB8: 21 | AC8: 22 | AD8: 23 | AE8: 36
A9: 1 | B9: FORNECIMENTO DAS COMPORTAS | F9: =MAX(#REF!) ->  | G9: =ROUNDUP((F9/30),0) ->  | H9: =1801168.33/2 -> 900584.165 | I9: =1801168.33/2 -> 900584.165 | AF9: =H9+I9+J9+K9+L9 -> 1801168.33 | AG9: =SUM(H9:L9)-AF9 -> 0
A10: 2 | B10: INSTALAÇÃO DAS COMPORTAS | J10: =1014956.64/3 -> 338318.88 | K10: =1014956.64/3 -> 338318.88 | L10: =1014956.64/3 -> 338318.88 | AF10: =H10+I10+J10+K10+L10 -> 1014956.64 | AG10: =SUM(H10:L10)-AF10 -> 0
A11: 3 | B11: FORNECIMENTO DOS EQUIPAMENTOS DE TELECOM | F11: =MAX(#REF!) ->  | G11: =ROUNDUP((F11/30),0) ->  | H11: =543008.92/2 -> 271504.46 | I11: =543008.92/2 -> 271504.46 | AF11: 543008.92 | AG11: =SUM(H11:L11)-AF11 -> 0
A12: 4 | B12: INSTALAÇÃO DOS EQUIPAMENTOS DE TELECOM | F12: =MAX(#REF!) ->  | J12: =1185756.32/3 -> 395252.1067 | K12: =1185756.32/3 -> 395252.1067 | L12: =1185756.32/3 -> 395252.1067 | AF12: 1185756.32 | AG12: =SUM(H12:L12)-AF12 -> 0
A13: VALOR ORÇAMENTO: | AF13: =SUM(AF9:AF12) -> 4544890.21
A15: VALOR TOTAL: | AF15: =SUM(AF13:AF14) -> 4544890.21
A17: Mês | H17: 1 | I17: 2 | J17: 3 | K17: 4 | L17: 5 | M17: 6 | N17: 7 | O17: 8 | P17: 9 | Q17: 10 | R17: 11 | S17: 12 | T17: 13 | U17: 14 | V17: 15 | W17: 16 | X17: 17 | Y17: 18 | Z17: 19 | AA17: 20 | AB17: 21 | AC17: 22 | AD17: 23 | AE17: 24
A18: TOTAL ACUMULADO (R$)= | C18: =SUM(H18:AE18) -> 4544890.21 | H18: =SUM(H9:H10,H11:H12) -> 1172088.625 | I18: 1172088.625 | J18: 733570.9867 | K18: 733570.9867 | L18: 733570.9867 | M18: 0 | N18: 0 | O18: 0 | P18: 0 | Q18: 0 | R18: 0 | S18: 0 | T18: 0 | U18: 0 | V18: 0 | W18: 0 | X18: 0 | Y18: 0 | Z18: 0 | AA18: 0 | AB18: 0 | AC18: 0 | AD18: 0 | AE18: 0
A20: DESEMBOLSO DO PERÍODO (R$)= | C20: =SUM(H20:AE20) -> 4544890.21 | F20: =F18 -> 0 | G20: =G18 -> 0 | H20: =H18 -> 1172088.625 | I20: =I18 -> 1172088.625 | J20: 733570.9867 | K20: 733570.9867 | L20: 733570.9867 | M20: 0 | N20: 0 | O20: 0 | P20: 0 | Q20: 0 | R20: 0 | S20: 0 | T20: 0 | U20: 0 | V20: 0 | W20: 0 | X20: 0 | Y20: 0 | Z20: 0 | AA20: 0 | AB20: 0 | AC20: 0 | AD20: 0 | AE20: 0
A22: DESEMBOLSO DO PERÍODO ACUMULADO (R$)= | F22: =F20 -> 0 | G22: =G20 -> 0 | H22: =H20 -> 1172088.625 | I22: =H22+I20 -> 2344177.25 | J22: =I22+J20 -> 3077748.237 | K22: 3811319.223 | L22: 4544890.21 | M22: 4544890.21 | N22: 4544890.21 | O22: 4544890.21 | P22: 4544890.21 | Q22: 4544890.21 | R22: 4544890.21 | S22: 4544890.21 | T22: 4544890.21 | U22: 4544890.21 | V22: 4544890.21 | W22: 4544890.21 | X22: 4544890.21 | Y22: 4544890.21 | Z22: 4544890.21 | AA22: 4544890.21 | AB22: 4544890.21 | AC22: 4544890.21 | AD22: 4544890.21 | AE22: =AD22+AE20 -> 4544890.21
A24: PERCENTUAL DO PERÍODO (%)= | F24: =F22 -> 0 | G24: =G22 -> 0 | H24: =H20/$C$20 -> 0.2578915157 | I24: =I20/$C$20 -> 0.2578915157 | J24: 0.1614056562 | K24: 0.1614056562 | L24: 0.1614056562 | M24: 0 | N24: 0 | O24: 0 | P24: 0 | Q24: 0 | R24: 0 | S24: 0 | T24: 0 | U24: 0 | V24: 0 | W24: 0 | X24: 0 | Y24: 0 | Z24: 0 | AA24: 0 | AB24: 0 | AC24: 0 | AD24: 0 | AE24: 0
A26: PERCENTUAL ACUMLADO (%)= | F26: =F24 -> 0 | G26: =G24 -> 0 | H26: =H22/$C$20 -> 0.2578915157 | I26: 0.5157830314 | J26: 0.6771886876 | K26: 0.8385943438 | L26: 1 | M26: 1 | N26: 1 | O26: 1 | P26: 1 | Q26: 1 | R26: 1 | S26: 1 | T26: 1 | U26: 1 | V26: 1 | W26: 1 | X26: 1 | Y26: 1 | Z26: 1 | AA26: 1 | AB26: 1 | AC26: 1 | AD26: 1 | AE26: 1
A30: X | B30: Y
A31: 1 | B31: =H18 -> 1172088.625
A32: 2 | B32: =I18 -> 1172088.625
A33: 3 | B33: =J18 -> 733570.9867
A34: 4 | B34: =K18 -> 733570.9867
A35: 5 | B35: =L18 -> 733570.9867
